bitfinex/quotes_ETHUSD_20240927
["timestamp","ask_amount","ask_price","bid_price","bid_amount"]
[1727476448267,4.49426,2708.0,2707.4,3.69347]
[1727476448661,1.9595737,2708.3,2707.9,1.65481119]
[1727476448873,0.8015,2708.3,2708.1,1.65481119]
[1727476449228,0.8015,2708.3,2708.1,5.34743119]
[1727476449563,0.8015,2708.3,2708.1,1.65481119]
[1727476449734,0.8015,2708.3,2707.9,5.34769119]
[1727476450238,0.8015,2708.3,2707.9,3.69288]
[1727476450980,0.8015,2708.3,2708.1,3.69262]
[1727476451671,0.8015,2708.3,2707.9,3.69283]
[1727476452665,0.8015,2708.3,2708.0,3.69275]
[1727476452981,0.8015,2708.3,2707.9,3.69283]
[1727476453547,0.8015,2708.3,2708.0,3.69276]
[1727476453750,0.8015,2708.3,2707.9,3.69283]
[1727476453930,0.8015,2708.3,2708.0,3.69274]
[1727476454274,0.8015,2708.3,2707.9,3.69283]
[1727476454439,0.8015,2708.3,2707.7,3.69314]
[1727476454646,3.69222,2708.4,2707.5,8.07203766]
[1727476454647,0.8015,2708.1,2707.5,7.38673]
[1727476455195,0.8015,2707.9,2707.0,0.7985]
[1727476455485,0.8015,2707.9,2707.4,3.69351]
[1727476455684,1.250913,2707.9,2707.4,3.69351]
[1727476455841,1.250913,2707.9,2707.4,3.69347]
[1727476456041,1.250913,2707.9,2707.5,3.69343]
[1727476456042,0.8015,2707.9,2707.5,3.69343]
[1727476457196,0.8015,2707.9,2707.4,3.69347]
[1727476457403,3.69225,2708.4,2707.6,3.58014766]
[1727476457404,0.8015,2708.4,2707.6,3.58014766]
[1727476457611,0.8015,2708.4,2708.0,3.58014766]
[1727476457903,0.8015,2708.4,2708.1,3.69262]
[1727476458135,0.8015,2708.6,2708.1,3.69249]
[1727476458330,1.170687,2708.6,2708.1,3.69249]
[1727476459003,1.170687,2708.6,2708.2,3.69246]
[1727476459321,0.8015,2708.6,2708.2,3.69246]
[1727476459532,0.8015,2708.6,2708.0,4.37864766]
[1727476459704,4.49306,2708.9,2708.3,7.27236766]
[1727476460825,0.8015,2708.9,2708.4,3.69213]
[1727476461620,0.8015,2708.9,2708.0,4.37864766]
[1727476461821,3.69187,2708.7,2708.1,7.38506]
[1727476462019,3.69187,2708.7,2708.1,3.69252]
[1727476464023,3.69167,2708.8,2708.3,3.6923]
[1727476465961,0.8015,2708.9,2708.3,3.6923]
[1727476466161,1.250801,2708.9,2708.3,3.6923]
[1727476466461,0.8015,2708.9,2708.3,3.6923]
[1727476467128,0.8015,2708.9,2708.6,3.69194]
[1727476467454,0.8015,2708.9,2708.5,3.69197]
[1727476468569,0.8015,2708.9,2708.7,3.69177]
[1727476468773,0.8015,2708.9,2708.0,0.7985]
[1727476468774,3.69057,2709.7,2709.0,3.69138]
[1727476468949,3.69079,2709.5,2708.8,7.27172766]
[1727476469273,0.7981,2709.6,2708.8,4.34864766]
[1727476469437,0.7981,2709.6,2709.2,3.69103]
[1727476469638,0.7981,2709.6,2709.3,3.69098]
[1727476473691,0.7981,2709.6,2709.1,3.69116]
[1727476473857,0.7981,2709.6,2709.2,3.69111]
[1727476474063,0.85473887,2709.6,2709.2,3.69111]
[1727476474250,0.85473887,2709.6,2709.3,3.69095]
[1727476474987,0.85473887,2709.6,2709.1,7.27130766]
[1727476475290,4.54535887,2709.6,2708.9,7.27160766]
[1727476475595,4.54535887,2709.6,2709.1,3.69125]
[1727476478886,0.85473887,2709.6,2709.1,3.69118]
[1727476479093,0.85473887,2709.6,2709.2,3.6911]
[1727476479262,0.05663887,2709.6,2709.3,0.84231728]
[1727476479588,0.05663887,2709.6,2709.5,3.69071]
[1727476480272,0.05663887,2709.6,2709.5,3.76451864]
[1727476480479,0.05663887,2709.6,2709.5,3.69071]
[1727476482290,0.05663887,2709.6,2709.5,4.45921]
[1727476483401,0.05663887,2709.6,2709.5,4.53301263]
[1727476483960,0.05663887,2709.6,2709.5,4.45921]
[1727476486014,0.05663887,2709.6,2709.5,7.45921]
[1727476487909,0.1313283,2709.9,2709.6,3.0]
[1727476488113,0.1313283,2709.9,2709.8,11.07934766]
[1727476503237,0.1313283,2709.9,2709.8,11.57336866]
[1727476504114,0.1313283,2709.9,2709.8,10.76446866]
[1727476504329,0.1313283,2709.9,2709.8,10.27044766]
[1727476511557,0.9272283,2709.9,2709.2,0.8018]
[1727476511714,0.9272283,2709.9,2709.5,3.69064]
[1727476511908,0.9272283,2709.9,2709.6,3.69054]
[1727476512110,0.9272283,2709.9,2709.8,3.6903]
[1727476515137,0.9272283,2709.9,2709.7,3.69044]
[1727476515340,0.9272283,2709.9,2709.8,3.6903]
[1727476515849,0.9272283,2709.9,2709.7,3.69044]
[1727476516148,0.9272283,2709.9,2709.5,3.69063]
[1727476517061,0.9272283,2709.9,2709.6,3.69057]
[1727476518249,0.9272283,2709.9,2709.5,3.69063]
[1727476518553,0.9272283,2709.9,2709.5,7.38127]
[1727476518918,0.9272283,2709.9,2709.4,3.58014766]
[1727476519122,0.9272283,2709.9,2709.7,3.6904]
[1727476519857,0.9272283,2709.9,2709.7,7.3808]
[1727476520064,0.9272283,2709.9,2709.7,3.6904]
[1727476523545,0.9272283,2709.9,2709.7,3.69036]
[1727476524064,0.9272283,2709.9,2709.5,3.69063]
[1727476524065,0.9272283,2709.9,2709.5,3.69061]
[1727476524247,0.9272283,2709.9,2709.4,3.69083]
[1727476524927,4.6174083,2709.9,2709.4,3.69083]
[1727476525874,4.51836,2709.6,2709.1,3.69117]
[1727476526027,4.51836,2709.6,2708.9,3.69147]
[1727476526028,0.8277,2709.5,2708.9,3.69147]
[1727476526231,0.8277,2709.3,2708.8,3.58014766]
[1727476526430,0.8277,2709.3,2708.7,3.69176]
[1727476526431,0.8277,2709.4,2708.7,3.69176]
[1727476526653,0.8277,2709.2,2708.7,3.69176]
[1727476526872,0.8277,2709.2,2708.8,3.69165]
[1727476527561,0.8277,2709.2,2708.8,3.69158]
[1727476528342,0.8277,2709.1,2708.6,7.27203766]
[1727476528646,0.8277,2709.1,2708.6,3.69189]
[1727476528848,0.8277,2709.0,2708.5,3.692]
[1727476529149,0.8277,2709.0,2708.6,3.69184]
[1727476530379,0.8277,2709.0,2708.4,7.27224766]
[1727476530679,0.8277,2709.0,2708.5,3.69206]
[1727476531375,0.8277,2709.0,2708.6,3.6919]
[1727476532080,0.8277,2709.0,2708.7,0.09657134]
[1727476532783,0.8277,2709.0,2708.7,3.78837134]
[1727476532950,0.8277,2709.0,2708.9,3.69153]
[1727476533142,0.8277,2709.0,2708.9,3.78631885]
[1727476534173,3.69076,2709.5,2708.9,3.78631885]
[1727476534376,0.8277,2709.4,2708.9,3.78631885]
[1727476536098,0.8277,2709.4,2708.9,0.09478885]
[1727476536874,3.691,2709.3,2708.9,0.09478885]
[1727476540504,0.8277,2709.2,2708.9,0.09478885]
[1727476542267,0.8277,2709.2,2708.6,3.69186]
[1727476542477,0.8277,2709.2,2709.0,0.09483984]
[1727476542696,3.69127,2709.1,2708.6,3.69186]
[1727476543074,3.69127,2709.1,2708.6,7.38371]
[1727476543412,1.27957,2709.2,2708.6,3.69185]
[1727476543573,4.97079,2709.2,2708.6,7.38372]
[1727476543902,4.97079,2709.2,2708.6,3.69185]
[1727476544104,4.97079,2709.2,2708.6,7.38372]
[1727476544497,4.97079,2709.2,2708.6,3.69185]
[1727476544711,3.69144,2709.0,2708.4,3.69214]
[1727476544912,0.798,2708.9,2708.5,3.69198]
[1727476546209,0.798,2708.9,2708.6,0.09520647]
[1727476546674,3.69168,2708.8,2708.6,0.09520647]
[1727476547109,3.69168,2708.8,2708.3,7.38454]
[1727476547316,3.69168,2708.8,2708.7,0.09514702]
[1727476547611,0.798,2708.9,2708.7,0.09514702]
[1727476547811,1.246944,2708.9,2708.4,3.69219]
[1727476548011,0.798,2708.9,2708.5,0.09533036]
[1727476548577,4.48954,2708.9,2708.5,0.09533036]
[1727476548780,0.798,2708.9,2708.5,0.09533036]
[1727476550190,0.798,2708.9,2708.6,3.69187]
[1727476550386,0.798,2708.9,2708.7,0.09514702]
[1727476550592,0.798,2708.9,2708.7,3.78692702]
[1727476554213,0.798,2709.2,2708.8,3.69167]
[1727476554514,0.798,2709.2,2708.9,3.7864637]
[1727476555513,0.798,2709.2,2708.9,0.0949637]
[1727476564097,0.798,2709.2,2708.7,5.3431415]
[1727476564326,0.798,2709.2,2709.0,0.09498712]
[1727476564634,4.48915,2709.2,2709.1,0.09489548]
[1727476564831,4.48915,2709.2,2708.7,5.3431415]
[1727476565032,4.48915,2709.2,2708.8,0.09517042]
[1727476565231,3.69127,2709.1,2708.7,1.6513615]
[1727476565446,3.69127,2709.1,2708.8,0.09517042]
[1727476565730,0.798,2709.2,2708.8,0.09517042]
[1727476565932,4.48915,2709.2,2708.7,5.3431615]
[1727476566229,0.798,2709.2,2708.8,3.78678662]
[1727476568430,1.9560737,2709.2,2708.8,3.78678662]
[1727476568626,1.9560737,2709.2,2708.8,3.69163]
[1727476568827,1.9560737,2709.2,2708.9,0.09500514]
[1727476569533,1.1580737,2709.1,2708.9,5.43786664]
[1727476569745,1.1580737,2709.2,2708.9,1.74636664]
[1727476569901,1.1580737,2709.2,2708.9,0.09500514]
[1727476570326,1.1580737,2709.1,2708.9,0.09500514]
[1727476571000,1.1580737,2709.3,2709.1,3.69126]
[1727476571307,1.1580737,2709.3,2709.2,0.09473022]
[1727476571526,1.55048147,2709.3,2709.2,0.09473022]
[1727476571707,1.1632682,2709.3,2709.0,0.8311]
[1727476571906,1.1632682,2709.2,2709.0,0.8311]
[1727476572117,1.1632682,2709.3,2709.0,0.8311]
[1727476572420,1.1632682,2709.2,2709.0,0.8311]
[1727476572633,1.1632682,2709.3,2709.0,0.8311]
[1727476573363,1.1632682,2709.3,2709.1,3.69126]
[1727476573656,1.1632682,2709.3,2709.1,7.38252]
[1727476573847,1.1632682,2709.3,2709.1,9.0338815]
[1727476574058,1.55048147,2709.4,2709.1,9.0338815]
[1727476574059,1.1632682,2709.2,2709.1,9.0338815]
[1727476574232,1.1632682,2709.4,2709.2,0.8311]
[1727476574413,1.1632682,2709.4,2709.3,1.6513615]
[1727476574755,1.1632682,2709.5,2709.3,1.6513615]
[1727476575111,1.1632682,2709.5,2709.4,4.52195]
[1727476575337,1.1632682,2709.8,2709.4,4.52195]
[1727476575537,1.1632682,2709.8,2709.6,3.69058]
[1727476576016,1.1632682,2709.8,2709.7,0.09405127]
[1727476576542,1.2945965,2709.9,2709.7,0.09405127]
[1727476577226,1.2945965,2709.9,2709.7,5.43574277]
[1727476577637,0.1313283,2709.9,2709.7,5.43574277]
[1727476578214,0.0813283,2709.9,2709.7,5.43574277]
[1727476578767,0.0813283,2709.9,2709.8,3.6903]
[1727476579134,0.0813283,2709.9,2709.8,3.78382258]
[1727476579815,0.0813283,2709.9,2709.8,0.09352258]
[1727476580019,0.0813283,2709.9,2709.7,1.6513615]
[1727476580241,0.0813283,2709.9,2709.8,0.09352258]
[1727476580460,0.0813283,2709.9,2709.7,5.3417815]
[1727476580753,0.0813283,2709.9,2709.8,3.78382258]
[1727476583160,0.0813283,2709.9,2709.8,4.61492258]
[1727476585034,0.0813283,2709.9,2709.8,3.78382258]
[1727476594269,0.8454283,2709.9,2709.8,0.09352258]
[1727476594559,0.0813283,2709.9,2709.8,0.09352258]
[1727476594765,0.0813283,2709.9,2709.8,3.6903]
[1727476594933,0.0813283,2709.9,2709.8,3.76952025]
[1727476595961,0.0813283,2709.9,2709.8,0.07922025]
[1727476596350,0.0813283,2709.9,2709.7,1.6513615]
[1727476596561,0.0813283,2709.9,2709.8,0.07922025]
[1727476596865,0.0813283,2709.9,2709.7,1.6513615]
[1727476597067,0.0813283,2709.9,2709.8,0.07922025]
[1727476597526,0.0813283,2709.9,2709.6,3.6905]
[1727476597732,0.0813283,2709.9,2709.8,0.07922025]
[1727476597932,0.0813283,2709.9,2709.7,3.76973184]
[1727476598134,0.0813283,2709.9,2709.8,3.76952025]
[1727476598939,0.0813283,2709.9,2709.8,0.07922025]
[1727476599364,0.0813283,2709.9,2709.7,3.69044]
[1727476599669,0.0813283,2709.9,2709.8,0.07922025]
[1727476600334,0.0813283,2709.9,2709.7,3.69044]
[1727476600534,0.0813283,2709.9,2709.8,0.07922025]
[1727476600960,0.0813283,2709.9,2709.7,3.69044]
[1727476601163,0.0813283,2709.9,2709.8,0.07922025]
[1727476601552,0.0813283,2709.9,2709.7,5.3418015]
[1727476601755,0.0813283,2709.9,2709.8,0.07922025]
[1727476602157,0.0813283,2709.9,2709.7,9.0321615]
[1727476602357,0.0813283,2709.9,2709.8,0.07922025]
[1727476602773,0.0813283,2709.9,2709.7,9.0320915]
[1727476602971,0.0813283,2709.9,2709.8,0.07922025]
[1727476603358,0.0813283,2709.9,2709.7,9.0320915]
[1727476603567,0.0813283,2709.9,2709.8,0.07922025]
[1727476604271,0.0813283,2709.9,2709.7,5.3417215]
[1727476604581,0.0813283,2709.9,2709.8,0.07926165]
[1727476604876,0.0813283,2709.9,2709.7,5.3417215]
[1727476605037,0.0813283,2709.9,2709.8,0.07926165]
[1727476605239,0.0813283,2709.9,2709.7,5.3417215]
[1727476605463,0.0813283,2709.9,2709.8,0.07926165]
[1727476605665,0.0813283,2709.9,2709.7,5.3417215]
[1727476605879,0.0813283,2709.9,2709.8,0.07926165]
[1727476606331,0.0813283,2709.9,2709.7,5.3417215]
[1727476606538,0.0813283,2709.9,2709.8,0.07926165]
[1727476606873,0.0813283,2709.9,2709.7,5.3417215]
[1727476607073,0.0813283,2709.9,2709.8,3.76956165]
[1727476607367,0.0813283,2709.9,2709.8,4.55176165]
[1727476607677,0.0813283,2709.9,2709.8,4.62556069]
[1727476608452,0.0813283,2709.9,2709.8,4.55176165]
[1727476608849,0.0813283,2709.9,2709.8,4.62556066]
[1727476609059,0.0813283,2709.9,2709.8,4.55176165]
[1727476609989,0.0813283,2709.9,2709.8,4.62555506]
[1727476610272,0.0813283,2709.9,2709.8,7.55176165]
[1727476610478,0.0813283,2709.9,2709.8,7.62555112]
[1727476610852,0.0813283,2709.9,2709.8,7.55176165]
[1727476616869,0.0813283,2709.9,2709.8,7.62554164]
[1727476617076,0.0813283,2709.9,2709.8,8.04578265]
[1727476617460,0.0813283,2709.9,2709.8,10.06217822]
[1727476618416,0.0813283,2709.9,2709.8,10.06221747]
[1727476619987,0.0813283,2709.9,2709.8,9.69714415]
[1727476622697,0.0813283,2709.9,2709.8,9.69714415]
[1727476623418,0.0813283,2709.9,2709.8,6.20312315]
[1727476624115,0.0813283,2709.9,2709.8,4.55176165]
[1727476624316,0.0813283,2709.9,2709.8,5.42092315]
[1727476625374,0.0813283,2709.9,2709.8,8.42092315]
[1727476630988,0.0813283,2709.9,2709.8,6.76956165]
[1727476631306,0.0813283,2709.9,2709.8,8.42092315]
[1727476640733,0.0813283,2709.9,2709.8,10.11597702]
[1727476642131,0.0813283,2709.9,2709.8,9.69024415]
[1727476642937,0.0813283,2709.9,2709.8,9.19622315]
[1727476644704,0.0813283,2709.9,2709.8,10.11597702]
[1727476647235,0.05,2710.0,2709.9,6.69017]
[1727476647403,0.05,2710.0,2709.9,7.52794466]
[1727476647603,0.05,2710.0,2709.9,7.60631022]
[1727476647831,0.05,2710.0,2709.9,8.10033122]
[1727476648034,0.05,2710.0,2709.9,8.02655629]
[1727476649270,0.05,2710.0,2709.9,8.57655629]
[1727476650636,0.05,2710.0,2709.9,8.02655629]
[1727476665082,0.05,2710.0,2709.9,7.53253529]
[1727476669755,0.80675664,2710.0,2709.9,3.76853529]
[1727476670000,0.80675664,2710.0,2709.9,5.41989679]
[1727476670953,0.80675664,2710.0,2709.9,8.41989679]
[1727476671883,0.80675664,2710.0,2709.9,0.07836529]
[1727476672598,0.80675664,2710.0,2709.9,5.41989679]
[1727476677179,0.80675664,2710.0,2709.9,1.72972679]
[1727476679901,0.80675664,2710.0,2709.9,5.41989679]
[1727476682362,0.80675664,2710.0,2709.9,3.76853529]
[1727476682985,0.80675664,2710.0,2709.9,5.41989679]
[1727476688113,0.04645664,2710.0,2709.9,6.32149491]
[1727476688403,0.04645664,2710.0,2709.9,6.24769679]
[1727476690066,0.04645664,2710.0,2709.9,5.41989679]
[1727476692206,0.04645664,2710.0,2709.9,8.41989679]
[1727476694182,0.04645664,2710.0,2709.9,6.76853529]
[1727476694382,0.04645664,2710.0,2709.9,8.41989679]
[1727476720129,0.84305664,2710.0,2709.9,3.76853529]
[1727476721688,0.84305664,2710.0,2709.9,5.41989679]
[1727476726125,0.04645664,2710.0,2709.9,5.41989679]
[1727476731334,0.04645664,2710.0,2709.9,9.29338836]
[1727476731539,0.04645664,2710.0,2709.9,9.58579006]
[1727476732250,0.04645664,2710.0,2709.9,11.1339083]
[1727476732573,0.04645664,2710.0,2709.9,9.58579006]
[1727476732751,0.04645664,2710.0,2709.9,11.1339083]
[1727476732955,0.04645664,2710.0,2709.9,9.58579006]
[1727476734750,0.04645664,2710.0,2709.9,9.21959679]
[1727476734880,0.04645664,2710.0,2709.9,9.58533526]
[1727476740999,0.04645664,2710.0,2709.9,9.21959679]
[1727476741304,0.04645664,2710.0,2709.9,9.5850518]
[1727476741509,0.7805,2710.8,2710.7,3.68908]
[1727476741808,0.7805,2711.0,2710.9,3.68881]
[1727476742100,0.7805,2711.0,2710.9,5.41041508]
[1727476747877,0.7805,2711.0,2710.9,0.07024358]
[1727476748563,0.7805,2711.0,2710.9,3.75905358]
[1727476749132,0.7805,2711.0,2710.9,3.75802861]
[1727476754541,0.7805,2711.0,2710.9,0.06921861]
[1727476755390,1.34371682,2711.0,2710.9,0.06921861]
[1727476755547,1.34371682,2711.0,2710.7,3.68902]
[1727476755758,1.34371682,2711.0,2710.9,0.0699434]
[1727476756085,0.7537,2711.0,2710.9,0.0699434]
[1727476756380,0.7537,2711.0,2710.6,6.68917]
[1727476756545,0.7537,2711.0,2710.9,0.0699434]
[1727476756742,0.7537,2711.0,2710.6,6.68917]
[1727476756978,0.7537,2711.0,2710.9,0.0699434]
[1727476757152,0.56055182,2711.0,2710.6,6.68917]
[1727476757352,1.31425182,2711.0,2710.9,0.0699434]
[1727476757540,1.31425182,2711.0,2710.6,6.68917]
[1727476757541,0.7537,2710.9,2710.6,3.68917]
[1727476757747,0.7537,2710.8,2710.6,3.68917]
[1727476758368,0.7537,2710.8,2710.5,5.3405915]
[1727476758369,0.7537,2710.8,2710.7,3.68908]
[1727476759281,0.7537,2710.8,2710.7,5.3404415]
[1727476763092,0.7537,2711.1,2710.7,5.3404415]
[1727476763301,0.7537,2711.1,2710.9,3.68874]
[1727476763594,0.7537,2711.1,2710.9,7.37747]
[1727476763758,0.7537,2711.1,2711.0,3.68867]
[1727476766276,0.7537,2711.1,2710.9,5.3400915]
[1727476766565,0.7537,2711.1,2710.9,9.0288315]
[1727476766770,0.7537,2711.1,2711.0,3.68867]
[1727476770058,0.7537,2711.1,2710.9,5.3400915]
[1727476770259,0.7537,2711.1,2711.0,3.68867]
[1727476771056,0.7537,2711.1,2711.0,3.75844706]
[1727476772657,0.7537,2711.1,2711.0,0.06977706]
[1727476774190,0.7537,2711.1,2711.0,0.01977706]
[1727476774392,0.7537,2711.1,2711.0,0.06811039]
[1727476774393,1.9169682,2711.1,2711.0,0.06811039]
[1727476774611,0.7537,2711.1,2711.0,0.06811039]
[1727476775383,1.9169682,2711.1,2711.0,0.06811039]
[1727476777498,2.30418147,2711.1,2711.0,0.06811039]
[1727476777805,0.7537,2711.1,2711.0,0.06811039]
[1727476778415,2.30418147,2711.1,2711.0,0.06811039]
[1727476780821,0.7537,2711.1,2711.0,0.06811039]
[1727476781106,2.30418147,2711.1,2711.0,0.06811039]
[1727476783078,2.728465,2711.1,2711.0,0.06811039]
[1727476783265,3.1166374,2711.1,2710.7,1.6513615]
[1727476783470,1.16329582,2710.9,2710.8,0.06830259]
[1727476783680,0.58309943,2710.9,2710.6,3.0]
[1727476783877,1.16332721,2710.9,2710.7,0.06839411]
[1727476784186,1.16332721,2710.9,2710.7,3.75738411]
[1727476784382,1.95872721,2710.8,2710.7,0.06839411]
[1727476784582,2.61789993,2710.8,2710.7,0.06839411]
[1727476785097,2.61789993,2710.8,2710.6,3.6892]
[1727476785292,1.16332223,2710.7,2710.5,3.68926]
[1727476785705,1.16332223,2710.7,2710.6,3.68922]
[1727476785915,1.16332223,2710.7,2710.6,3.75770564]
[1727476786982,0.37812222,2710.7,2710.6,0.06848564]
[1727476787184,1.92918332,2710.7,2710.6,0.06848564]
[1727476787493,1.92918332,2710.7,2710.6,0.0686049]
[1727476787721,1.92918332,2710.7,2710.4,3.68941]
[1727476787917,1.16302307,2710.6,2710.5,0.06869644]
[1727476788786,1.54114529,2710.7,2710.5,0.06869644]
[1727476788994,1.16302307,2710.6,2710.5,0.06869644]
[1727476790590,1.54114529,2710.7,2710.5,3.75804644]
[1727476791121,1.16302307,2710.6,2710.5,3.75804644]
[1727476791712,1.54114529,2710.7,2710.5,3.75804644]
[1727476792890,1.16302307,2710.7,2710.6,3.68922]
[1727476793228,1.16302307,2710.7,2710.6,3.75800378]
[1727476795510,1.16302307,2710.7,2710.6,0.06878378]
[1727476795712,1.16302307,2710.7,2710.6,3.68922]
[1727476795996,1.16302307,2710.7,2710.6,0.06878837]
[1727476796196,0.3780923,2710.7,2710.6,0.06878837]
[1727476796511,0.3780923,2710.7,2710.5,3.68928]
[1727476796512,1.54111537,2710.7,2710.5,3.68928]
[1727476796716,0.3780923,2710.7,2710.6,0.06878837]
[1727476797627,1.54111537,2710.7,2710.6,0.06878837]
[1727476797797,2.2298619,2710.8,2710.6,3.75792837]
[1727476800611,2.2298619,2710.8,2710.6,7.44706837]
[1727476800820,1.06683883,2710.8,2710.6,7.44706837]
[1727476801126,1.06683883,2710.8,2710.6,7.44705837]
[1727476801301,1.06683883,2710.8,2710.6,3.75791837]
[1727476801920,1.06683883,2710.8,2710.6,3.75778097]
[1727476802699,1.06683883,2710.8,2710.6,0.06865097]
[1727476803439,1.06683883,2710.8,2710.6,3.75786097]
[1727476803735,1.16302307,2710.9,2710.6,7.44700097]
[1727476804107,1.16302307,2710.9,2710.6,3.75779097]
[1727476804300,1.16302307,2710.9,2710.6,7.44693097]
[1727476804501,1.16302307,2710.9,2710.6,3.75779097]
[1727476806748,1.16302307,2710.9,2710.6,3.70779097]
[1727476807042,1.16302307,2710.9,2710.6,3.75437507]
[1727476808040,1.16302307,2710.9,2710.6,0.06523507]
[1727476808041,2.3263611,2710.7,2710.6,0.06523507]
[1727476808349,5.62566556,2710.7,2710.0,3.68994]
[1727476808502,1.16211893,2710.4,2710.1,3.68982]
[1727476809530,1.16211893,2710.4,2710.2,0.06566986]
[1727476809903,0.7753,2710.3,2710.0,3.68994]
[1727476810215,0.7753,2710.3,2710.0,3.63994]
[1727476811876,0.7753,2710.3,2710.1,3.68988]
[1727476812361,0.7753,2710.3,2710.0,3.63994]
[1727476812739,0.7753,2710.3,2710.1,3.68986]
[1727476814464,0.7753,2710.3,2710.0,3.63994]
[1727476814650,0.96904189,2710.3,2710.0,3.63994]
[1727476815539,0.96904189,2710.3,2709.8,6.1143815]
[1727476815745,0.96904189,2710.3,2709.8,9.8045615]
[1727476816044,0.96904189,2710.3,2709.9,3.75621101]
[1727476816963,0.96904189,2710.3,2710.0,3.69002]
[1727476817261,0.96904189,2710.3,2710.0,3.75607943]
[1727476818260,0.7753,2710.3,2710.0,7.44609943]
[1727476818470,0.7753,2710.3,2710.0,9.09746093]
[1727476818669,0.7753,2710.3,2710.0,5.40744093]
[1727476820425,0.7753,2710.3,2710.0,0.06605943]
[1727476820627,0.96904189,2710.3,2710.0,3.75607943]
[1727476821868,0.96904189,2710.3,2710.0,0.06605943]
[1727476822066,0.7753,2710.3,2710.0,0.06605943]
[1727476822232,4.46496,2710.3,2710.0,0.06605943]
[1727476822436,0.7753,2710.3,2710.0,0.06605943]
[1727476822682,0.7753,2710.3,2709.9,3.69016]
[1727476822864,0.56269089,2710.2,2710.1,0.06596786]
[1727476823064,0.56269089,2710.2,2710.0,0.06605943]
[1727476823262,0.56269089,2710.2,2710.1,0.06596786]
[1727476823573,0.7753,2710.3,2709.9,3.69016]
[1727476823777,0.7753,2710.3,2710.1,0.06596786]
[1727476823947,0.7753,2710.3,2709.9,3.69016]
[1727476824276,0.7753,2710.3,2710.2,0.0658763]
[1727476824463,0.7753,2710.3,2709.9,3.69016]
[1727476824667,1.49294008,2710.3,2710.2,0.0658763]
[1727476824848,1.49294008,2710.3,2709.9,3.69016]
[1727476825042,1.49294008,2710.3,2710.2,0.0658763]
[1727476825248,1.49294008,2710.3,2709.9,3.69016]
[1727476825781,1.49294008,2710.3,2710.0,0.06605943]
[1727476825957,0.7753,2710.3,2710.0,3.75606943]
[1727476826354,0.7753,2710.3,2710.1,3.68986]
[1727476826557,0.7753,2710.3,2710.1,3.75582786]
[1727476830254,0.7753,2710.3,2710.1,0.06596786]
[1727476830758,0.7753,2710.3,2710.2,0.06618827]
[1727476830946,0.7753,2710.3,2709.9,3.69006]
[1727476831152,0.7753,2710.3,2710.0,3.75637141]
[1727476832154,0.7753,2710.3,2710.0,3.79427449]
[1727476832691,0.7753,2710.3,2710.1,3.68987]
[1727476832996,0.7753,2710.3,2710.2,0.1041907]
[1727476833176,0.7753,2710.3,2710.0,3.68997]
[1727476833377,0.7753,2710.3,2710.1,0.10428367]
[1727476834183,0.7753,2710.3,2710.0,3.69003]
[1727476834352,0.7753,2710.3,2710.1,0.10428367]
[1727476836391,0.7753,2710.3,2710.0,3.69002]
[1727476836574,0.7753,2710.3,2710.1,0.10428367]
[1727476836975,0.7753,2710.3,2709.9,7.38015]
[1727476837353,0.7753,2710.3,2710.0,0.10437665]
[1727476838967,0.7753,2710.3,2710.0,3.79433665]
[1727476839686,0.7753,2710.3,2710.0,0.10437665]
[1727476839687,6.1507615,2710.1,2710.0,0.10437665]
[1727476839984,0.8095,2710.0,2709.2,3.69104]
[1727476840158,0.8095,2710.0,2709.3,0.09615139]
[1727476840159,0.8095,2709.6,2709.3,0.09615139]
[1727476840355,1.37567081,2709.6,2709.3,0.09615139]
[1727476840551,2.53731888,2709.6,2709.2,3.69108]
[1727476840995,2.53731888,2709.6,2709.3,0.091595]
[1727476841216,0.62278789,2709.5,2709.3,0.091595]
[1727476841351,0.62278789,2709.5,2709.1,3.69119]
[1727476841550,0.62278789,2709.5,2709.2,0.09168802]
[1727476841755,0.8095,2709.4,2709.0,6.69134]
[1727476841963,0.8095,2709.4,2709.1,0.09178106]
[1727476843462,1.37840487,2709.4,2709.1,0.09178106]
[1727476843714,1.37840487,2709.4,2709.2,3.69104]
[1727476843912,0.8095,2709.4,2709.3,3.69099]
[1727476844072,0.8095,2709.4,2709.3,3.782585]
[1727476845183,0.8117,2709.6,2709.3,0.091595]
[1727476845509,0.8117,2709.6,2709.2,3.69111]
[1727476845712,0.8117,2709.6,2709.4,0.09150197]
[1727476846014,0.56638081,2709.5,2709.2,3.69111]
[1727476846478,0.56638081,2709.5,2709.1,4.45485]
[1727476846677,0.8117,2709.6,2709.1,8.14602]
[1727476846879,0.8117,2709.6,2709.2,3.69109]
[1727476848716,0.8117,2709.6,2709.2,3.69105]
[1727476849009,0.8117,2709.6,2709.3,3.69097]
[1727476853602,0.8117,2709.6,2709.2,3.69109]
[1727476860194,0.8117,2709.6,2709.2,3.69103]
[1727476861018,0.8117,2709.6,2709.3,0.08938894]
[1727476864125,1.16164807,2709.8,2709.4,3.69085]
[1727476864126,1.97334807,2709.8,2709.4,3.69085]
[1727476864321,0.8117,2709.8,2709.4,3.69085]
[1727476864524,0.8117,2709.8,2709.5,0.0892029]
[1727476864525,1.53294222,2709.8,2709.5,0.0892029]
[1727476868628,2.69459029,2709.8,2709.5,0.0892029]
[1727476868826,1.53294222,2709.8,2709.5,0.0892029]
[1727476869032,2.69459029,2709.8,2709.5,0.0892029]
[1727476869416,1.53294222,2709.8,2709.5,0.0892029]
[1727476869998,2.69459029,2709.8,2709.5,0.0892029]
[1727476870597,1.53294222,2709.8,2709.5,0.0892029]
[1727476871236,2.69459029,2709.8,2709.5,0.0892029]
[1727476871440,6.38490029,2709.8,2709.5,0.0892029]
[1727476873437,0.79337644,2709.7,2709.5,0.0892029]
[1727476876122,1.95502451,2709.7,2709.5,0.0892029]
[1727476877021,0.79337644,2709.7,2709.5,0.0892029]
[1727476877235,1.16164807,2709.7,2709.5,0.0892029]
[1727476880359,1.16164807,2709.7,2709.5,3.7798829]
[1727476880748,1.16164807,2709.8,2709.6,3.69058]
[1727476881061,1.16164807,2709.8,2709.7,0.08903519]
[1727476881268,1.54886409,2709.9,2709.7,0.08903519]
[1727476882054,1.16190635,2709.8,2709.7,0.08903519]
[1727476882257,1.16213875,2710.0,2709.8,4.4847]
[1727476882581,1.16213875,2710.1,2709.9,3.77898258]
[1727476882733,1.16213875,2710.1,2709.9,0.08881258]
[1727476885165,1.16213875,2710.0,2709.9,3.77896258]